[Event "Titled Tuesday Blitz April 18 Late 2023"]
[White "Mihajlovskij"]
[Black "Hajiyev, Kanan"]
[BlackFideId "13404148"]
[WhiteElo "2291"]
[BlackElo "2103"]
[Result "1-0"]
[Round "07"]
[TimeControl "180+2"]
[Date "2023.04.18"]
[WhiteClock "0:01:01"]
[BlackClock "0:00:26"]

1. e4 {[%clk 0:03:00]}  c6 {[%clk 0:02:58]} 2. d4 {[%clk 0:03:00]}  d5 {[%clk 0:02:59]} 3. e5 {[%clk 0:03:01]}  c5 {[%clk 0:02:59]} 4. c3 {[%clk 0:02:46]}  cxd4 {[%clk 0:02:56]} 5. cxd4 {[%clk 0:02:42]}  Nc6 {[%clk 0:02:57]} 6. Nc3 {[%clk 0:02:42]}  Bf5 {[%clk 0:02:56]} 7. g4 {[%clk 0:02:36]}  Bg6 {[%clk 0:02:48]} 8. Nge2 {[%clk 0:02:29]}  e6 {[%clk 0:02:35]} 9. Nf4 {[%clk 0:02:30]}  Bb4 {[%clk 0:02:20]} 10. h4 {[%clk 0:02:25]}  h5 {[%clk 0:01:19]} 11. Nxg6 {[%clk 0:02:24]}  fxg6 {[%clk 0:01:20]} 12. Bb5 {[%clk 0:02:19]}  Qb6 {[%clk 0:01:17]} 13. Ba4 {[%clk 0:02:14]}  Ne7 {[%clk 0:01:15]} 14. Bg5 {[%clk 0:02:10]}  O-O-O {[%clk 0:01:14]} 15. Bxc6 {[%clk 0:02:07]}  Qxc6 {[%clk 0:00:56]} 16. Rc1 {[%clk 0:01:59]}  Kb8 {[%clk 0:00:55]} 17. a3 {[%clk 0:02:00]}  Bxc3+ {[%clk 0:00:55]} 18. Rxc3 {[%clk 0:02:00]}  Qd7 {[%clk 0:00:55]} 19. Bxe7 {[%clk 0:01:44]}  Qxe7 {[%clk 0:00:54]} 20. g5 {[%clk 0:01:44]}  Rhf8 {[%clk 0:00:52]} 21. Qe2 {[%clk 0:01:32]}  Rc8 {[%clk 0:00:47]} 22. Rhh3 {[%clk 0:01:28]}  Rxc3 {[%clk 0:00:38]} 23. Rxc3 {[%clk 0:01:29]}  Rf4 {[%clk 0:00:38]} 24. Qc2 {[%clk 0:01:16]}  Re4+ {[%clk 0:00:27]} 25. Kf1 {[%clk 0:01:16]}  a6 {[%clk 0:00:28]} 26. Rc8+ {[%clk 0:01:10]}  Ka7 {[%clk 0:00:28]} 27. Rc7 {[%clk 0:01:10]}  Qf8 {[%clk 0:00:26]} 28. Qc6 {[%clk 0:01:01]} 1-0


[Site "https://www.chess.com"]

[Event "Titled Tuesday Blitz April 18 Late 2023"]
[White "Coelho, Ramyres Santana"]
[Black "Petrovic, Aleksa"]
[WhiteFideId "2120690"]
[BlackFideId "967629"]
[WhiteElo "1888"]
[BlackElo "2309"]
[Result "0-1"]
[Round "07"]
[TimeControl "180+2"]
[Date "2023.04.18"]
[WhiteClock "0:01:25"]
[BlackClock "0:00:39"]

1. e4 {[%clk 0:02:26]}  c6 {[%clk 0:02:58]} 2. d4 {[%clk 0:02:25]}  d5 {[%clk 0:02:58]} 3. Nc3 {[%clk 0:02:26]}  dxe4 {[%clk 0:02:58]} 4. Nxe4 {[%clk 0:02:27]}  Bf5 {[%clk 0:02:58]} 5. Ng3 {[%clk 0:02:27]}  Bg6 {[%clk 0:02:58]} 6. Nf3 {[%clk 0:02:28]}  e6 {[%clk 0:02:58]} 7. h4 {[%clk 0:02:29]}  h6 {[%clk 0:02:58]} 8. h5 {[%clk 0:02:30]}  Bh7 {[%clk 0:02:58]} 9. Bd3 {[%clk 0:02:31]}  Bxd3 {[%clk 0:02:57]} 10. Qxd3 {[%clk 0:02:32]}  Nf6 {[%clk 0:02:57]} 11. Bd2 {[%clk 0:02:32]}  c5 {[%clk 0:02:58]} 12. O-O-O {[%clk 0:02:33]}  Nc6 {[%clk 0:02:57]} 13. Bc3 {[%clk 0:02:31]}  Qd5 {[%clk 0:02:56]} 14. Kb1 {[%clk 0:02:29]}  Rd8 {[%clk 0:02:48]} 15. dxc5 {[%clk 0:02:28]}  Qxd3 {[%clk 0:02:47]} 16. Rxd3 {[%clk 0:02:28]}  Rxd3 {[%clk 0:02:46]} 17. cxd3 {[%clk 0:02:29]}  Bxc5 {[%clk 0:02:46]} 18. Rf1 {[%clk 0:02:23]}  Ke7 {[%clk 0:02:34]} 19. Bxf6+ {[%clk 0:02:22]}  gxf6 {[%clk 0:02:33]} 20. Ne4 {[%clk 0:02:23]}  Bb6 {[%clk 0:02:31]} 21. a3 {[%clk 0:02:15]}  f5 {[%clk 0:02:21]} 22. Nc3 {[%clk 0:02:15]}  Rg8 {[%clk 0:02:11]} 23. g3 {[%clk 0:02:14]}  Nd4 {[%clk 0:02:07]} 24. Nxd4 {[%clk 0:02:13]}  Bxd4 {[%clk 0:02:08]} 25. Ne2 {[%clk 0:02:10]}  Be5 {[%clk 0:02:04]} 26. d4 {[%clk 0:02:08]}  Bd6 {[%clk 0:01:47]} 27. Nc3 {[%clk 0:01:58]}  Rg5 {[%clk 0:01:38]} 28. Rh1 {[%clk 0:01:53]}  Rg4 {[%clk 0:01:29]} 29. Rh4 {[%clk 0:01:51]}  Rxh4 {[%clk 0:01:25]} 30. gxh4 {[%clk 0:01:52]}  Bh2 {[%clk 0:01:21]} 31. Kc2 {[%clk 0:01:52]}  Bg1 {[%clk 0:01:20]} 32. Nd1 {[%clk 0:01:52]}  Kd6 {[%clk 0:01:19]} 33. Kd3 {[%clk 0:01:52]}  f6 {[%clk 0:01:16]} 34. Ne3 {[%clk 0:01:52]}  Bh2 {[%clk 0:01:13]} 35. Nc4+ {[%clk 0:01:50]}  Kd5 {[%clk 0:01:10]} 36. Ne3+ {[%clk 0:01:49]}  Kd6 {[%clk 0:01:08]} 37. Nc4+ {[%clk 0:01:49]}  Kc6 {[%clk 0:01:07]} 38. Ne3 {[%clk 0:01:50]}  Kc7 {[%clk 0:00:59]} 39. Nf1 {[%clk 0:01:41]}  Bf4 {[%clk 0:00:53]} 40. Ne3 {[%clk 0:01:39]}  Bxe3 {[%clk 0:00:50]} 41. fxe3 {[%clk 0:01:40]}  Kd6 {[%clk 0:00:49]} 42. Kc4 {[%clk 0:01:40]}  e5 {[%clk 0:00:48]} 43. dxe5+ {[%clk 0:01:25]}  Kxe5 {[%clk 0:00:39]} 0-1


[Site "https://www.chess.com"]

[Event "Titled Tuesday Blitz April 18 Late 2023"]
[White "Lorenzo De La Riva, Lazaro"]
[Black "mjelcic"]
[WhiteFideId "2268809"]
[WhiteElo "2294"]
[BlackElo "2197"]
[Result "1-0"]
[Round "07"]
[TimeControl "180+2"]
[Date "2023.04.18"]
[WhiteClock "0:00:47"]
[BlackClock "0:00:01"]

1. Nf3 {[%clk 0:03:00]}  Nf6 {[%clk 0:02:56]} 2. g3 {[%clk 0:03:01]}  g6 {[%clk 0:02:55]} 3. Bg2 {[%clk 0:03:02]}  Bg7 {[%clk 0:02:55]} 4. O-O {[%clk 0:03:02]}  O-O {[%clk 0:02:55]} 5. b3 {[%clk 0:03:03]}  b6 {[%clk 0:02:49]} 6. Bb2 {[%clk 0:03:02]}  Bb7 {[%clk 0:02:49]} 7. c4 {[%clk 0:03:03]}  c5 {[%clk 0:02:49]} 8. d4 {[%clk 0:03:02]}  d5 {[%clk 0:02:44]} 9. cxd5 {[%clk 0:03:00]}  cxd4 {[%clk 0:02:38]} 10. Nxd4 {[%clk 0:02:47]}  Bxd5 {[%clk 0:02:35]} 11. Nf3 {[%clk 0:02:44]}  Nbd7 {[%clk 0:02:27]} 12. Nc3 {[%clk 0:02:42]}  Bb7 {[%clk 0:02:26]} 13. Rb1 {[%clk 0:02:35]}  Rc8 {[%clk 0:02:13]} 14. Nb5 {[%clk 0:02:30]}  a6 {[%clk 0:02:09]} 15. Na3 {[%clk 0:02:30]}  b5 {[%clk 0:01:59]} 16. Qd4 {[%clk 0:02:18]}  Qb6 {[%clk 0:01:46]} 17. Rfd1 {[%clk 0:02:12]}  Qxd4 {[%clk 0:01:42]} 18. Bxd4 {[%clk 0:02:10]}  Rc7 {[%clk 0:01:36]} 19. Rbc1 {[%clk 0:02:06]}  Rfc8 {[%clk 0:01:36]} 20. Rxc7 {[%clk 0:02:06]}  Rxc7 {[%clk 0:01:37]} 21. Nb1 {[%clk 0:02:04]}  Rc2 {[%clk 0:01:27]} 22. Ne1 {[%clk 0:02:02]}  Rc7 {[%clk 0:01:17]} 23. Nf3 {[%clk 0:02:00]}  Rc2 {[%clk 0:01:11]} 24. Nc3 {[%clk 0:01:49]}  Bxf3 {[%clk 0:01:04]} 25. Bxf3 {[%clk 0:01:47]}  b4 {[%clk 0:01:03]} 26. Na4 {[%clk 0:01:43]}  Rxa2 {[%clk 0:01:01]} 27. Rc1 {[%clk 0:01:43]}  h5 {[%clk 0:00:56]} 28. Rc7 {[%clk 0:01:39]}  Ra3 {[%clk 0:00:46]} 29. Bc6 {[%clk 0:01:36]}  Nf8 {[%clk 0:00:31]} 30. Nc5 {[%clk 0:01:37]}  Nd5 {[%clk 0:00:26]} 31. Bxd5 {[%clk 0:01:35]}  Bxd4 {[%clk 0:00:25]} 32. Rc8 {[%clk 0:01:35]}  Bxc5 {[%clk 0:00:25]} 33. Rxc5 {[%clk 0:01:36]}  Kg7 {[%clk 0:00:24]} 34. Rc7 {[%clk 0:01:34]}  Kf6 {[%clk 0:00:24]} 35. Bc4 {[%clk 0:01:33]}  Ne6 {[%clk 0:00:23]} 36. Rc6 {[%clk 0:01:33]}  a5 {[%clk 0:00:24]} 37. f4 {[%clk 0:01:31]}  Ra1+ {[%clk 0:00:23]} 38. Kf2 {[%clk 0:01:31]}  a4 {[%clk 0:00:23]} 39. bxa4 {[%clk 0:01:30]}  Rxa4 {[%clk 0:00:24]} 40. e4 {[%clk 0:01:30]}  Ra3 {[%clk 0:00:19]} 41. Rb6 {[%clk 0:01:20]}  Ra4 {[%clk 0:00:15]} 42. Bd3 {[%clk 0:01:15]}  Ra3 {[%clk 0:00:14]} 43. Bc4 {[%clk 0:01:12]}  Ra4 {[%clk 0:00:13]} 44. Bd5 {[%clk 0:01:12]}  Kg7 {[%clk 0:00:11]} 45. Rb7 {[%clk 0:01:11]}  Kf6 {[%clk 0:00:10]} 46. h3 {[%clk 0:01:10]}  b3 {[%clk 0:00:07]} 47. Rxb3 {[%clk 0:01:08]}  Nc5 {[%clk 0:00:07]} 48. Rb6+ {[%clk 0:01:07]}  e6 {[%clk 0:00:07]} 49. Ke3 {[%clk 0:00:58]}  Kg7 {[%clk 0:00:06]} 50. Bc6 {[%clk 0:00:58]}  Ra3+ {[%clk 0:00:05]} 51. Kd4 {[%clk 0:00:58]}  Nd3 {[%clk 0:00:04]} 52. Rb7 {[%clk 0:00:56]}  Nf2 {[%clk 0:00:02]} 53. Be8 {[%clk 0:00:54]}  Ra4+ {[%clk 0:00:01]} 54. Kc5 {[%clk 0:00:54]}  Nxe4+ {[%clk 0:00:01]} 55. Kb5 {[%clk 0:00:47]} 1-0


[Site "https://www.chess.com"]

[Event "Titled Tuesday Blitz April 18 Late 2023"]
[White "Jovic, Stanoje"]
[Black "Kovacevic, Radmila"]
[WhiteFideId "905020"]
[BlackFideId "933171"]
[WhiteElo "2236"]
[BlackElo "2194"]
[Result "1-0"]
[Round "07"]
[TimeControl "180+2"]
[Date "2023.04.18"]
[WhiteClock "0:00:48"]
[BlackClock "0:00:12"]

1. c4 {[%clk 0:03:00]}  e5 {[%clk 0:02:58]} 2. g3 {[%clk 0:03:00]}  d5 {[%clk 0:02:58]} 3. cxd5 {[%clk 0:03:00]}  Qxd5 {[%clk 0:02:58]} 4. Nf3 {[%clk 0:03:00]}  e4 {[%clk 0:02:58]} 5. Nc3 {[%clk 0:02:58]}  Qc6 {[%clk 0:02:54]} 6. Ne5 {[%clk 0:02:47]}  Qe6 {[%clk 0:02:51]} 7. Qa4+ {[%clk 0:02:45]}  Nd7 {[%clk 0:02:42]} 8. Nxd7 {[%clk 0:02:43]}  Bxd7 {[%clk 0:02:40]} 9. Qxe4 {[%clk 0:02:41]}  Qxe4 {[%clk 0:02:39]} 10. Nxe4 {[%clk 0:02:41]}  Bc6 {[%clk 0:02:39]} 11. f3 {[%clk 0:02:41]}  f5 {[%clk 0:02:24]} 12. Nc3 {[%clk 0:02:37]}  h5 {[%clk 0:02:21]} 13. h4 {[%clk 0:02:24]}  Bd6 {[%clk 0:02:17]} 14. Kf2 {[%clk 0:02:22]}  Nf6 {[%clk 0:02:16]} 15. d4 {[%clk 0:02:19]}  Ng4+ {[%clk 0:02:04]} 16. fxg4 {[%clk 0:02:16]}  Bxh1 {[%clk 0:02:03]} 17. gxf5 {[%clk 0:02:15]}  O-O {[%clk 0:01:37]} 18. e4 {[%clk 0:02:08]}  g6 {[%clk 0:01:32]} 19. Bc4+ {[%clk 0:02:08]}  Kg7 {[%clk 0:01:28]} 20. Bg5 {[%clk 0:02:05]}  gxf5 {[%clk 0:01:26]} 21. e5 {[%clk 0:01:58]}  Bc6 {[%clk 0:00:46]} 22. exd6 {[%clk 0:01:57]}  cxd6 {[%clk 0:00:46]} 23. Be7 {[%clk 0:01:53]}  f4 {[%clk 0:00:41]} 24. Bxf8+ {[%clk 0:01:46]}  Rxf8 {[%clk 0:00:41]} 25. Bd5 {[%clk 0:01:38]}  fxg3+ {[%clk 0:00:30]} 26. Kxg3 {[%clk 0:01:38]}  Rf5 {[%clk 0:00:26]} 27. Bxc6 {[%clk 0:01:36]}  bxc6 {[%clk 0:00:27]} 28. Re1 {[%clk 0:01:35]}  Kf7 {[%clk 0:00:21]} 29. Ne4 {[%clk 0:01:26]}  Rd5 {[%clk 0:00:20]} 30. Ng5+ {[%clk 0:01:25]}  Kf6 {[%clk 0:00:20]} 31. Rf1+ {[%clk 0:01:17]}  Ke7 {[%clk 0:00:19]} 32. Rf4 {[%clk 0:01:15]}  c5 {[%clk 0:00:17]} 33. dxc5 {[%clk 0:01:13]}  Rxc5 {[%clk 0:00:17]} 34. Re4+ {[%clk 0:01:09]}  Kd7 {[%clk 0:00:16]} 35. Re2 {[%clk 0:01:08]}  a5 {[%clk 0:00:16]} 36. Rd2 {[%clk 0:01:07]}  Rb5 {[%clk 0:00:16]} 37. Ne4 {[%clk 0:01:04]}  Rb6 {[%clk 0:00:15]} 38. Kf4 {[%clk 0:00:59]}  Ke6 {[%clk 0:00:15]} 39. Rxd6+ {[%clk 0:00:56]}  Rxd6 {[%clk 0:00:14]} 40. Nxd6 {[%clk 0:00:57]}  Kxd6 {[%clk 0:00:15]} 41. Kg5 {[%clk 0:00:57]}  Ke5 {[%clk 0:00:15]} 42. Kxh5 {[%clk 0:00:57]}  a4 {[%clk 0:00:14]} 43. Kg6 {[%clk 0:00:56]}  Kd4 {[%clk 0:00:14]} 44. h5 {[%clk 0:00:56]}  Kd3 {[%clk 0:00:14]} 45. h6 {[%clk 0:00:56]}  Kc2 {[%clk 0:00:15]} 46. b4 {[%clk 0:00:52]}  Kb2 {[%clk 0:00:15]} 47. h7 {[%clk 0:00:51]}  Kxa2 {[%clk 0:00:14]} 48. h8=Q {[%clk 0:00:49]}  a3 {[%clk 0:00:13]} 49. Qc3 {[%clk 0:00:48]}  Kb1 {[%clk 0:00:12]} 50. Qxa3 {[%clk 0:00:48]} 1-0


[Site "https://www.chess.com"]

[Event "Titled Tuesday Blitz April 18 Late 2023"]
[White "Gerbelli Neto, Eduardo"]
[Black "Ambartsumova, Karina"]
[WhiteFideId "2103281"]
[BlackFideId "4166299"]
[WhiteElo "2178"]
[BlackElo "2240"]
[Result "0-1"]
[Round "07"]
[TimeControl "180+2"]
[Date "2023.04.18"]
[WhiteClock "0:00:21"]
[BlackClock "0:00:58"]

1. e4 {[%clk 0:03:00]}  e5 {[%clk 0:02:59]} 2. Nf3 {[%clk 0:02:58]}  Nc6 {[%clk 0:03:00]} 3. Nc3 {[%clk 0:02:58]}  Nf6 {[%clk 0:02:59]} 4. d4 {[%clk 0:02:58]}  exd4 {[%clk 0:02:59]} 5. Nxd4 {[%clk 0:02:59]}  Bb4 {[%clk 0:02:59]} 6. Nxc6 {[%clk 0:03:00]}  bxc6 {[%clk 0:02:59]} 7. Bd3 {[%clk 0:03:00]}  O-O {[%clk 0:02:58]} 8. O-O {[%clk 0:03:00]}  d5 {[%clk 0:02:57]} 9. exd5 {[%clk 0:03:00]}  Bg4 {[%clk 0:02:58]} 10. f3 {[%clk 0:02:54]}  Bh5 {[%clk 0:02:57]} 11. dxc6 {[%clk 0:02:48]}  Qd6 {[%clk 0:02:58]} 12. Ne4 {[%clk 0:02:40]}  Qxc6 {[%clk 0:02:55]} 13. Qe2 {[%clk 0:02:18]}  Rad8 {[%clk 0:02:34]} 14. Bg5 {[%clk 0:01:59]}  Be7 {[%clk 0:01:37]} 15. Bb5 {[%clk 0:01:25]}  Qb6+ {[%clk 0:01:34]} 16. Be3 {[%clk 0:01:25]}  Qa5 {[%clk 0:01:34]} 17. Nxf6+ {[%clk 0:01:15]}  Bxf6 {[%clk 0:01:34]} 18. c3 {[%clk 0:01:16]}  Bg6 {[%clk 0:01:26]} 19. Bc5 {[%clk 0:01:11]}  Rfe8 {[%clk 0:01:15]} 20. Bxe8 {[%clk 0:01:05]}  Qxc5+ {[%clk 0:01:15]} 21. Kh1 {[%clk 0:01:06]}  Bd3 {[%clk 0:01:16]} 22. Qf2 {[%clk 0:00:55]}  Qxf2 {[%clk 0:01:14]} 23. Rxf2 {[%clk 0:00:52]}  Rxe8 {[%clk 0:01:14]} 24. Rd1 {[%clk 0:00:53]}  Bf5 {[%clk 0:01:10]} 25. g4 {[%clk 0:00:52]}  Be6 {[%clk 0:01:10]} 26. Re2 {[%clk 0:00:45]}  Rb8 {[%clk 0:01:07]} 27. a3 {[%clk 0:00:43]}  g5 {[%clk 0:01:02]} 28. Kg2 {[%clk 0:00:43]}  Kg7 {[%clk 0:01:02]} 29. Red2 {[%clk 0:00:41]}  Be5 {[%clk 0:00:59]} 30. h3 {[%clk 0:00:40]}  Bf4 {[%clk 0:00:59]} 31. Re2 {[%clk 0:00:34]}  Bc4 {[%clk 0:00:59]} 32. Rf2 {[%clk 0:00:34]}  Be3 {[%clk 0:00:59]} 33. Rc2 {[%clk 0:00:21]}  Bb3 {[%clk 0:00:58]} 0-1


[Site "https://www.chess.com"]

[Event "Titled Tuesday Blitz April 18 Late 2023"]
[White "Prieto Aranguren, Alain"]
[Black "Gubajdullin, Alexei"]
[WhiteFideId "2268906"]
[BlackFideId "4141202"]
[WhiteElo "2209"]
[BlackElo "2279"]
[Result "0-1"]
[Round "07"]
[TimeControl "180+2"]
[Date "2023.04.18"]
[WhiteClock "0:00:33"]
[BlackClock "0:01:09"]

1. d4 {[%clk 0:03:00]}  Nf6 {[%clk 0:02:58]} 2. c4 {[%clk 0:03:00]}  g6 {[%clk 0:02:58]} 3. Nc3 {[%clk 0:03:00]}  Bg7 {[%clk 0:02:59]} 4. e4 {[%clk 0:03:00]}  O-O {[%clk 0:03:00]} 5. f3 {[%clk 0:03:00]}  d6 {[%clk 0:03:00]} 6. Bg5 {[%clk 0:02:59]}  Nc6 {[%clk 0:03:01]} 7. Qd2 {[%clk 0:02:56]}  a6 {[%clk 0:03:01]} 8. Bd3 {[%clk 0:02:49]}  Nxd4 {[%clk 0:03:00]} 9. Nge2 {[%clk 0:02:47]}  Nxe2 {[%clk 0:02:57]} 10. Qxe2 {[%clk 0:02:46]}  Nd7 {[%clk 0:02:51]} 11. h4 {[%clk 0:02:45]}  h6 {[%clk 0:02:48]} 12. Bd2 {[%clk 0:02:43]}  Ne5 {[%clk 0:02:45]} 13. Bc2 {[%clk 0:02:42]}  c6 {[%clk 0:02:43]} 14. h5 {[%clk 0:02:35]}  g5 {[%clk 0:02:43]} 15. g3 {[%clk 0:02:17]}  b5 {[%clk 0:02:40]} 16. cxb5 {[%clk 0:02:16]}  axb5 {[%clk 0:02:40]} 17. f4 {[%clk 0:02:13]}  Bg4 {[%clk 0:02:38]} 18. Qe3 {[%clk 0:02:10]}  Nc4 {[%clk 0:02:33]} 19. Qf2 {[%clk 0:02:03]}  b4 {[%clk 0:02:32]} 20. Nd1 {[%clk 0:01:57]}  Bxd1 {[%clk 0:02:09]} 21. Rxd1 {[%clk 0:01:49]}  Nxb2 {[%clk 0:02:08]} 22. fxg5 {[%clk 0:01:49]}  Nxd1 {[%clk 0:02:05]} 23. Kxd1 {[%clk 0:01:49]}  Rxa2 {[%clk 0:01:50]} 24. gxh6 {[%clk 0:01:47]}  Ra1+ {[%clk 0:01:48]} 25. Ke2 {[%clk 0:01:40]}  Rxh1 {[%clk 0:01:46]} 26. hxg7 {[%clk 0:01:39]}  Kxg7 {[%clk 0:01:42]} 27. Qf4 {[%clk 0:00:58]}  Rh8 {[%clk 0:01:30]} 28. Qg4+ {[%clk 0:00:45]}  Kf8 {[%clk 0:01:29]} 29. h6 {[%clk 0:00:45]}  Rh2+ {[%clk 0:01:21]} 30. Kd1 {[%clk 0:00:44]}  Rxd2+ {[%clk 0:01:18]} 31. Kxd2 {[%clk 0:00:43]}  Rxh6 {[%clk 0:01:18]} 32. Bb3 {[%clk 0:00:39]}  Qb6 {[%clk 0:01:14]} 33. Qf5 {[%clk 0:00:35]}  Qd4+ {[%clk 0:01:12]} 34. Kc1 {[%clk 0:00:34]}  Rh1+ {[%clk 0:01:10]} 35. Kc2 {[%clk 0:00:33]}  Qc3# {[%clk 0:01:09]} 0-1


[Site "https://www.chess.com"]

[Event "Titled Tuesday Blitz April 18 Late 2023"]
[White "Schuster, Karsten"]
[Black "Bruedigam, Martin"]
[WhiteFideId "4611071"]
[BlackFideId "24608033"]
[WhiteElo "2294"]
[BlackElo "2331"]
[Result "0-1"]
[Round "07"]
[TimeControl "180+2"]
[Date "2023.04.18"]
[WhiteClock "0:00:21"]
[BlackClock "0:01:32"]

1. d4 {[%clk 0:02:54]}  Nf6 {[%clk 0:02:55]} 2. c4 {[%clk 0:02:54]}  e6 {[%clk 0:02:54]} 3. Nc3 {[%clk 0:02:54]}  d5 {[%clk 0:02:54]} 4. cxd5 {[%clk 0:02:53]}  exd5 {[%clk 0:02:54]} 5. Bg5 {[%clk 0:02:54]}  c6 {[%clk 0:02:54]} 6. Qc2 {[%clk 0:02:54]}  Be7 {[%clk 0:02:51]} 7. e3 {[%clk 0:02:54]}  h6 {[%clk 0:02:48]} 8. Bh4 {[%clk 0:02:54]}  O-O {[%clk 0:02:45]} 9. Bd3 {[%clk 0:02:53]}  Re8 {[%clk 0:02:42]} 10. Nf3 {[%clk 0:02:52]}  Nbd7 {[%clk 0:02:40]} 11. O-O {[%clk 0:02:52]}  Nh5 {[%clk 0:02:38]} 12. Bxe7 {[%clk 0:02:50]}  Qxe7 {[%clk 0:02:39]} 13. Rab1 {[%clk 0:02:49]}  a5 {[%clk 0:02:38]} 14. a3 {[%clk 0:02:49]}  Nhf6 {[%clk 0:02:35]} 15. b4 {[%clk 0:02:48]}  axb4 {[%clk 0:02:35]} 16. axb4 {[%clk 0:02:48]}  b5 {[%clk 0:02:31]} 17. Ne2 {[%clk 0:02:47]}  Bb7 {[%clk 0:02:22]} 18. Ng3 {[%clk 0:02:46]}  Nb6 {[%clk 0:02:21]} 19. Nf5 {[%clk 0:02:45]}  Qd7 {[%clk 0:02:19]} 20. Ne5 {[%clk 0:02:45]}  Qe6 {[%clk 0:02:14]} 21. Rfc1 {[%clk 0:02:31]}  Nc4 {[%clk 0:02:14]} 22. Bxc4 {[%clk 0:02:30]}  bxc4 {[%clk 0:02:05]} 23. b5 {[%clk 0:02:25]}  cxb5 {[%clk 0:01:56]} 24. Rxb5 {[%clk 0:02:24]}  Bc8 {[%clk 0:01:51]} 25. Ng3 {[%clk 0:00:34]}  Bd7 {[%clk 0:01:50]} 26. Rb7 {[%clk 0:00:29]}  Reb8 {[%clk 0:01:48]} 27. Rxb8+ {[%clk 0:00:24]}  Rxb8 {[%clk 0:01:48]} 28. h3 {[%clk 0:00:24]}  Be8 {[%clk 0:01:44]} 29. Ra1 {[%clk 0:00:21]}  g6 {[%clk 0:01:32]} 0-1


[Site "https://www.chess.com"]

[Event "Titled Tuesday Blitz April 18 Late 2023"]
[White "Lopez Gracia, Fernando"]
[Black "Fajdetic, Hrvoje"]
[WhiteFideId "2207184"]
[BlackFideId "14501945"]
[WhiteElo "2513"]
[BlackElo "2185"]
[Result "0-1"]
[Round "07"]
[TimeControl "180+2"]
[Date "2023.04.18"]
[WhiteClock "0:00:04"]
[BlackClock "0:00:04"]

1. Nf3 {[%clk 0:03:00]}  f5 {[%clk 0:02:54]} 2. c4 {[%clk 0:02:59]}  d6 {[%clk 0:02:53]} 3. d4 {[%clk 0:02:58]}  e6 {[%clk 0:02:53]} 4. Nc3 {[%clk 0:02:59]}  Nf6 {[%clk 0:02:53]} 5. g3 {[%clk 0:02:59]}  Be7 {[%clk 0:02:54]} 6. Bg2 {[%clk 0:03:00]}  O-O {[%clk 0:02:54]} 7. O-O {[%clk 0:03:00]}  Ne4 {[%clk 0:02:55]} 8. Nxe4 {[%clk 0:03:01]}  fxe4 {[%clk 0:02:55]} 9. Nd2 {[%clk 0:03:01]}  d5 {[%clk 0:02:56]} 10. f3 {[%clk 0:02:47]}  e3 {[%clk 0:02:55]} 11. Nb1 {[%clk 0:02:41]}  c5 {[%clk 0:02:48]} 12. Bxe3 {[%clk 0:02:38]}  cxd4 {[%clk 0:02:48]} 13. Bxd4 {[%clk 0:02:39]}  Nc6 {[%clk 0:02:48]} 14. cxd5 {[%clk 0:02:13]}  Nxd4 {[%clk 0:02:46]} 15. Qxd4 {[%clk 0:02:12]}  Bf6 {[%clk 0:02:45]} 16. Qd2 {[%clk 0:02:12]}  Qb6+ {[%clk 0:02:43]} 17. Kh1 {[%clk 0:02:09]}  Qxb2 {[%clk 0:02:33]} 18. Qxb2 {[%clk 0:02:01]}  Bxb2 {[%clk 0:02:34]} 19. Nd2 {[%clk 0:02:02]}  Bxa1 {[%clk 0:02:32]} 20. Rxa1 {[%clk 0:02:02]}  exd5 {[%clk 0:02:32]} 21. Nb3 {[%clk 0:02:03]}  Bd7 {[%clk 0:02:09]} 22. f4 {[%clk 0:02:01]}  Bc6 {[%clk 0:02:09]} 23. Nd4 {[%clk 0:02:01]}  Rae8 {[%clk 0:02:00]} 24. Rc1 {[%clk 0:01:59]}  Rf6 {[%clk 0:01:58]} 25. Rc3 {[%clk 0:01:56]}  g6 {[%clk 0:01:54]} 26. Kg1 {[%clk 0:01:56]}  h5 {[%clk 0:01:54]} 27. Kf2 {[%clk 0:01:57]}  h4 {[%clk 0:01:53]} 28. Nf3 {[%clk 0:01:54]}  hxg3+ {[%clk 0:01:53]} 29. hxg3 {[%clk 0:01:55]}  Kg7 {[%clk 0:01:42]} 30. Rd3 {[%clk 0:01:50]}  Re4 {[%clk 0:01:35]} 31. Nd4 {[%clk 0:01:43]}  Re7 {[%clk 0:01:33]} 32. Ra3 {[%clk 0:01:43]}  a6 {[%clk 0:01:33]} 33. Rd3 {[%clk 0:01:40]}  g5 {[%clk 0:01:31]} 34. f5 {[%clk 0:01:38]}  g4 {[%clk 0:01:23]} 35. Rc3 {[%clk 0:01:24]}  Re5 {[%clk 0:01:23]} 36. Rc1 {[%clk 0:01:16]}  Rfxf5+ {[%clk 0:01:20]} 37. Nxf5+ {[%clk 0:01:17]}  Rxf5+ {[%clk 0:01:20]} 38. Kg1 {[%clk 0:01:14]}  Kf6 {[%clk 0:01:16]} 39. Rd1 {[%clk 0:01:10]}  Ke5 {[%clk 0:01:15]} 40. e3 {[%clk 0:01:10]}  b5 {[%clk 0:01:01]} 41. Rc1 {[%clk 0:01:01]}  Kd6 {[%clk 0:01:01]} 42. a3 {[%clk 0:00:43]}  a5 {[%clk 0:01:00]} 43. Rc3 {[%clk 0:00:38]}  b4 {[%clk 0:00:56]} 44. axb4 {[%clk 0:00:39]}  axb4 {[%clk 0:00:56]} 45. Rc2 {[%clk 0:00:40]}  Rf8 {[%clk 0:00:50]} 46. Bf1 {[%clk 0:00:36]}  b3 {[%clk 0:00:46]} 47. Rb2 {[%clk 0:00:35]}  Rb8 {[%clk 0:00:42]} 48. Kf2 {[%clk 0:00:35]}  Kc5 {[%clk 0:00:43]} 49. Be2 {[%clk 0:00:33]}  Kb4 {[%clk 0:00:41]} 50. Bxg4 {[%clk 0:00:33]}  Kc3 {[%clk 0:00:37]} 51. Rb1 {[%clk 0:00:33]}  Bb5 {[%clk 0:00:28]} 52. Rc1+ {[%clk 0:00:24]}  Kd2 {[%clk 0:00:24]} 53. Rb1 {[%clk 0:00:24]}  Bd3 {[%clk 0:00:23]} 54. Rd1+ {[%clk 0:00:19]}  Kc3 {[%clk 0:00:20]} 55. Be6 {[%clk 0:00:17]}  Bc2 {[%clk 0:00:18]} 56. Rxd5 {[%clk 0:00:15]}  b2 {[%clk 0:00:15]} 57. Rc5+ {[%clk 0:00:13]}  Kb4 {[%clk 0:00:12]} 58. Rc4+ {[%clk 0:00:10]}  Kb5 {[%clk 0:00:10]} 59. Rxc2 {[%clk 0:00:04]}  b1=Q {[%clk 0:00:10]} 60. Bf5 {[%clk 0:00:05]}  Qa1 {[%clk 0:00:08]} 61. g4 {[%clk 0:00:05]}  Rf8 {[%clk 0:00:07]} 62. Rd2 {[%clk 0:00:04]}  Qe5 {[%clk 0:00:06]} 63. e4 {[%clk 0:00:04]}  Qf4+ {[%clk 0:00:05]} 64. Ke2 {[%clk 0:00:04]}  Rh8 {[%clk 0:00:05]} 65. Rd5+ {[%clk 0:00:04]}  Kc4 {[%clk 0:00:04]} 0-1


[Site "https://www.chess.com"]